[Event "EYCC Open-U14 2019"]
[Site "Bratislava"]
[Date "2019.08.08"]
[Round "7.6"]
[White "Can, Isik"]
[Black "Rozen, Eytan"]
[Result "1-0"]
[ECO "B12"]
[WhiteElo "2374"]
[BlackElo "2260"]
[Annotator "NA"]
[PlyCount "103"]
[EventDate "2019.08.02"]
[EventType "swiss"]
[EventCountry "SVK"]
[SourceTitle "playchess.com"]
[Source "ChessBase"]
[SourceQuality "1"]
[TimeControl "40/5400+30:1800+30"]

1. e4 {[%emt 0:00:00]} c6 {[%emt 0:02:07]} 2. d4 {[%emt 0:00:00]} d5 {[%emt 0:00:03]} 3. e5 {[%emt 0:00:00]} Bf5 {[%emt 0:00:51]} 4. h4 {[%emt 0:00:00]} h5 {[%emt 0:10:10]} 5. c4 {[%emt 0:01:29]} e6 {[%emt 0:00:56]} 6. Nc3 {[%emt 0:00:04]} Ne7 {[%emt 0:00:50]} 7. Nge2 {[%emt 0:00:05]} dxc4 {[%emt 0:01:07]} 8. Ng3 {[%emt 0:02:00]} Bd3 {[%emt 0:04:36]} 9. Bxd3 {[%emt 0:06:51]} cxd3 {[%emt 0:01:46]} 10. Qxd3 {[%emt 0:01:10]} Nd5 {[%emt 0:08:10]} 11. Bg5 {[%emt 0:01:00]} Qa5 {[%emt 0:04:33]} 12. O-O {[%emt 0:02:12]} Nd7 {[%emt 0:04:40]} 13. f4 {[%emt 0:04:32]} Be7 {[%emt 0:08:03]} 14. Bxe7 {[%emt 0:02:10]} Nxe7 {[%emt 0:01:05]} 15. Nce4 {[%emt 0:00:22]} Qd5 {[%emt 0:02:43]} 16. b4 {[%emt 0:08:04]} Rd8 {[%emt 0:05:30]} 17. Nd6+ {[%emt 0:11:21]} Kf8 {[%emt 0:00:02]} 18. Nge4 {[%emt 0:07:50]} Nb6 {[%emt 0:10:05]} 19. Nc3 {[%emt 0:01:56]} Rxd6 {[%emt 0:00:02]} 20. Nxd5 {[%emt 0:00:05]} Rxd5 {[%emt 0:00:02]} 21. f5 {[%emt 0:00:21]} Nxf5 {[%emt 0:00:34]} 22. Rxf5 {[%emt 0:00:04]} exf5 {[%emt 0:00:01]} 23. Qxf5 {[%emt 0:00:06]} Rh6 {[%emt 0:05:26]} 24. Rf1 {[%emt 0:00:29]} Rf6 {[%emt 0:02:49]} 25. Qxh5 {[%emt 0:00:30]} Rxf1+ {[%emt 0:00:08]} 26. Kxf1 {[%emt 0:00:01]} Kg8 {[%emt 0:02:54]} 27. Qg4 {[%emt 0:01:15]} a5 {[%emt 0:01:42]} 28. bxa5 {[%emt 0:02:13]} Rxa5 {[%emt 0:00:10]} 29. Qg5 {[%emt 0:01:15]} f6 {[%emt 0:04:23]} 30. Qg6 {[%emt 0:00:38]} Nd5 {[%emt 0:03:02]} 31. e6 {[%emt 0:01:56]} Rxa2 {[%emt 0:01:16]} 32. e7 {[%emt 0:00:09]} Ra1+ {[%emt 0:01:36]} 33. Kf2 {[%emt 0:00:01]} Ra2+ {[%emt 0:00:11]} 34. Kg1 {[%emt 0:00:06]} Nxe7 {[%emt 0:00:25]} 35. Qe8+ {[%emt 0:00:02]} Kh7 {[%emt 0:00:01]} 36. Qxe7 {[%emt 0:00:07]} Rb2 {[%emt 0:00:42]} 37. h5 {[%emt 0:00:20]} Rb1+ {[%emt 0:02:17]} 38. Kh2 {[%emt 0:00:02]} Rb5 {[%emt 0:00:25]} 39. Qe4+ {[%emt 0:00:29]} Kh8 {[%emt 0:00:45]} 40. Kg1 {[%emt 0:00:00]} Rg5 {[%emt 0:00:00]} 41. Qe7 {[%emt 0:00:25]} Kh7 {[%emt 0:14:02]} 42. Qxb7 {[%emt 0:00:24]} Rd5 {[%emt 0:00:01]} 43. Qf7 {[%emt 0:00:27]} Rd6 {[%emt 0:01:13]} 44. Qg6+ {[%emt 0:00:17]} Kh8 {[%emt 0:00:00]} 45. g4 {[%emt 0:00:20]} Rxd4 {[%emt 0:05:11]} 46. h6 {[%emt 0:01:18]} Rd1+ {[%emt 0:00:36]} 47. Kg2 {[%emt 0:01:46]} gxh6 {[%emt 0:00:09]} 48. Qxh6+ {[%emt 0:00:18]} Kg8 {[%emt 0:00:01]} 49. Qg6+ {[%emt 0:00:00]} Kh8 {[%emt 0:00:11]} 50. Qxf6+ {[%emt 0:00:02]} Kh7 {[%emt 0:00:12]} 51. Qxc6 {[%emt 0:00:04]} Rd2+ {[%emt 0:00:08]} 52. Kg3 {[%emt 0:00:02]} 1-0

[Event "EYCC Open-U14 2019"]
[Site "Bratislava"]
[Date "2019.08.08"]
[Round "7.7"]
[White "Weihrauch, Jakob"]
[Black "Oglaza, Oskar"]
[Result "0-1"]
[ECO "B91"]
[WhiteElo "2201"]
[BlackElo "2345"]
[Annotator "NA"]
[PlyCount "104"]
[EventDate "2019.08.02"]
[EventType "swiss"]
[EventCountry "SVK"]
[SourceTitle "playchess.com"]
[Source "ChessBase"]
[SourceQuality "1"]
[TimeControl "40/5400+30:1800+30"]

1. e4 {[%emt 0:00:00]} c5 {[%emt 0:00:00]} 2. Nf3 {[%emt 0:00:00]} d6 {[%emt 0:00:00]} 3. d4 {[%emt 0:00:00]} cxd4 {[%emt 0:00:00]} 4. Nxd4 {[%emt 0:00:00]} Nf6 {[%emt 0:00:02]} 5. Nc3 {[%emt 0:00:02]} a6 {[%emt 0:00:03]} 6. g3 {[%emt 0:00:15]} e5 {[%emt 0:00:05]} 7. Nde2 {[%emt 0:00:06]} Be7 {[%emt 0:00:05]} 8. Bg2 {[%emt 0:00:35]} O-O {[%emt 0:00:13]} 9. O-O {[%emt 0:01:04]} b5 {[%emt 0:00:07]} 10. Nd5 {[%emt 0:00:31]} Nxd5 {[%emt 0:00:19]} 11. Qxd5 {[%emt 0:00:02]} Ra7 {[%emt 0:00:06]} 12. Be3 {[%emt 0:00:14]} Rb7 {[%emt 0:00:44]} 13. Qd2 {[%emt 0:00:16]} Nd7 {[%emt 0:11:23]} 14. Nc3 {[%emt 0:01:27]} h6 {[%emt 0:20:14]} 15. Nd5 {[%emt 0:04:14]} Nf6 {[%emt 0:00:21]} 16. Nb4 {[%emt 0:09:18]} Rd7 {[%emt 0:02:34]} 17. Bh3 {[%emt 0:03:40]} Rc7 {[%emt 0:24:37]} 18. Bxc8 {[%emt 0:08:03]} Qxc8 {[%emt 0:01:43]} 19. f3 {[%emt 0:01:08]} a5 {[%emt 0:01:38]} 20. Nd5 {[%emt 0:04:20]} Nxd5 {[%emt 0:00:17]} 21. Qxd5 {[%emt 0:00:01]} Rxc2 {[%emt 0:00:49]} 22. Rac1 {[%emt 0:05:10]} Bg5 {[%emt 0:01:55]} 23. Bxg5 {[%emt 0:05:06]} hxg5 {[%emt 0:01:53]} 24. Rxc2 {[%emt 0:00:10]} Qxc2 {[%emt 0:00:05]} 25. Qxb5 {[%emt 0:01:15]} Rc8 {[%emt 0:04:47]} 26. Re1 {[%emt 0:04:00]} Qd2 {[%emt 0:01:34]} 27. Qe2 {[%emt 0:02:53]} Rc2 {[%emt 0:00:18]} 28. Qxd2 {[%emt 0:00:09]} Rxd2 {[%emt 0:00:03]} 29. Rb1 {[%emt 0:00:20]} Kf8 {[%emt 0:11:13]} 30. a3 {[%emt 0:03:52]} a4 {[%emt 0:02:34]} 31. b3 {[%emt 0:08:26]} Rd3 {[%emt 0:02:54]} 32. bxa4 {[%emt 0:00:07]} Rxf3 {[%emt 0:03:21]} 33. Kg2 {[%emt 0:10:27]} Rxa3 {[%emt 0:00:14]} 34. Rb8+ {[%emt 0:01:46]} Ke7 {[%emt 0:00:04]} 35. Ra8 {[%emt 0:00:07]} Re3 {[%emt 0:01:06]} 36. a5 {[%emt 0:01:11]} Rxe4 {[%emt 0:00:08]} 37. a6 {[%emt 0:00:15]} Ra4 {[%emt 0:00:13]} 38. Kf3 {[%emt 0:01:07]} d5 {[%emt 0:01:48]} 39. a7 {[%emt 0:00:25]} g4+ {[%emt 0:00:16]} 40. Ke3 {[%emt 0:00:00]} Ra3+ {[%emt 0:00:00]} 41. Ke2 {[%emt 0:00:52]} e4 {[%emt 0:00:15]} 42. Rg8 {[%emt 0:01:33]} Rxa7 {[%emt 0:00:04]} 43. Rxg7 {[%emt 0:00:11]} d4 {[%emt 0:01:05]} 44. Rxg4 {[%emt 0:00:40]} Ra2+ {[%emt 0:00:02]} 45. Kf1 {[%emt 0:01:44]} f5 {[%emt 0:00:07]} 46. Rf4 {[%emt 0:00:08]} Ke6 {[%emt 0:01:07]} 47. g4 {[%emt 0:00:06]} Rxh2 {[%emt 0:00:03]} 48. Rxf5 {[%emt 0:00:47]} d3 {[%emt 0:00:11]} 49. Kg1 {[%emt 0:01:49]} Rc2 {[%emt 0:00:10]} 50. Ra5 {[%emt 0:00:48]} d2 {[%emt 0:00:08]} 51. Ra6+ {[%emt 0:00:57]} Ke5 {[%emt 0:00:06]} 52. Ra5+ {[%emt 0:00:14]} Kf4 {[%emt 0:00:12]} 0-1

[Event "EYCC Open-U14 2019"]
[Site "Bratislava"]
[Date "2019.08.08"]
[Round "7.8"]
[White "Gnojek, Petr"]
[Black "Krastev, Alexander"]
[Result "0-1"]
[ECO "E81"]
[WhiteElo "2246"]
[BlackElo "2325"]
[Annotator "NA"]
[PlyCount "97"]
[EventDate "2019.08.02"]
[EventType "swiss"]
[EventCountry "SVK"]
[SourceTitle "playchess.com"]
[Source "ChessBase"]
[SourceQuality "1"]
[TimeControl "40/5400+30:1800+30"]

1. d4 {[%emt 0:00:00]} Nf6 {[%emt 0:00:00]} 2. c4 {[%emt 0:00:00]} g6 {[%emt 0:00:00]} 3. f3 {[%emt 0:00:00]} Bg7 {[%emt 0:00:00]} 4. e4 {[%emt 0:00:00]} d6 {[%emt 0:00:00]} 5. Nc3 {[%emt 0:00:33]} O-O {[%emt 0:00:02]} 6. Be3 c5 {[%emt 0:00:06]} 7. Nge2 {[%emt 0:01:48]} Nc6 {[%emt 0:00:09]} 8. Qd2 {[%emt 0:01:09]} Qa5 {[%emt 0:00:53]} 9. Rd1 {[%emt 0:04:31]} a6 {[%emt 0:07:37]} 10. dxc5 {[%emt 0:03:22]} dxc5 {[%emt 0:00:17]} 11. Nd5 {[%emt 0:00:21]} Qxd2+ {[%emt 0:00:36]} 12. Rxd2 {[%emt 0:00:08]} Nd7 {[%emt 0:00:18]} 13. f4 {[%emt 0:03:26]} e6 {[%emt 0:15:05]} 14. Ndc3 {[%emt 0:00:52]} b6 {[%emt 0:04:22]} 15. g3 {[%emt 0:01:38]} Rd8 {[%emt 0:25:56]} 16. e5 {[%emt 0:02:31]} Ncxe5 {[%emt 0:08:15]} 17. Bg2 {[%emt 0:04:24]} Nxc4 {[%emt 0:00:07]} 18. Bxa8 {[%emt 0:00:04]} Nxe3 {[%emt 0:00:37]} 19. b3 {[%emt 0:02:49]} b5 {[%emt 0:03:44]} 20. Ne4 {[%emt 0:03:52]} c4 {[%emt 0:03:56]} 21. Kf2 {[%emt 0:05:28]} Ng4+ {[%emt 0:01:35]} 22. Kf3 {[%emt 0:00:27]} f5 {[%emt 0:00:41]} 23. Nf2 {[%emt 0:05:47]} Nde5+ {[%emt 0:01:06]} 24. fxe5 {[%emt 0:00:08]} Rxd2 {[%emt 0:00:27]} 25. Nxg4 {[%emt 0:00:30]} fxg4+ {[%emt 0:00:04]} 26. Ke3 {[%emt 0:00:05]} Bh6+ {[%emt 0:04:05]} 27. Nf4 {[%emt 0:01:05]} c3 {[%emt 0:00:38]} 28. Rc1 {[%emt 0:02:22]} b4 {[%emt 0:00:20]} 29. a3 {[%emt 0:00:42]} a5 {[%emt 0:00:12]} 30. axb4 {[%emt 0:00:57]} axb4 {[%emt 0:00:05]} 31. Be4 {[%emt 0:00:07]} Bf8 {[%emt 0:03:44]} 32. Nd3 {[%emt 0:00:52]} Bh6+ {[%emt 0:00:34]} 33. Nf4 {[%emt 0:00:06]} Rd7 {[%emt 0:07:52]} 34. Ra1 {[%emt 0:04:17]} Bb7 {[%emt 0:00:31]} 35. Ra7 {[%emt 0:01:50]} Bc6 {[%emt 0:00:16]} 36. Rxd7 {[%emt 0:02:44]} Bxd7 {[%emt 0:00:05]} 37. Kd3 {[%emt 0:00:14]} Bb5+ {[%emt 0:01:02]} 38. Kd4 {[%emt 0:01:08]} Bxf4 {[%emt 0:08:10]} 39. gxf4 {[%emt 0:00:07]} Be2 {[%emt 0:03:07]} 40. Bc2 {[%emt 0:00:00]} g3 {[%emt 0:00:00]} 41. hxg3 {[%emt 0:05:23]} Bg4 {[%emt 0:01:52]} 42. Kc4 {[%emt 0:01:03]} Bf5 {[%emt 0:00:06]} 43. Bd1 {[%emt 0:00:02]} c2 {[%emt 0:00:11]} 44. Bxc2 {[%emt 0:00:04]} Bxc2 {[%emt 0:00:04]} 45. Kxb4 {[%emt 0:00:03]} Kf7 {[%emt 0:00:37]} 46. Kc4 {[%emt 0:00:14]} g5 {[%emt 0:02:21]} 47. fxg5 {[%emt 0:00:26]} Kg6 {[%emt 0:00:07]} 48. b4 {[%emt 0:00:46]} Kxg5 {[%emt 0:00:11]} 49. Kd4 0-1

[Event "EYCC Open-U14 2019"]
[Site "Bratislava"]
[Date "2019.08.08"]
[Round "7.9"]
[White "Trofimov, Pavel"]
[Black "Stukan, Martin"]
[Result "1/2-1/2"]
[ECO "E37"]
[WhiteElo "2151"]
[BlackElo "2303"]
[Annotator "NA"]
[PlyCount "60"]
[EventDate "2019.08.02"]
[EventType "swiss"]
[EventCountry "SVK"]
[SourceTitle "playchess.com"]
[Source "ChessBase"]
[SourceQuality "1"]
[TimeControl "40/5400+30:1800+30"]

1. d4 {[%emt 0:00:00]} Nf6 {[%emt 0:00:00]} 2. c4 {[%emt 0:00:02]} e6 {[%emt 0:00:00]} 3. Nc3 {[%emt 0:00:33]} Bb4 {[%emt 0:00:00]} 4. Qc2 {[%emt 0:01:53]} d5 {[%emt 0:00:00]} 5. a3 {[%emt 0:02:44]} Bxc3+ {[%emt 0:00:00]} 6. Qxc3 {[%emt 0:00:04]} Ne4 {[%emt 0:00:04]} 7. Qc2 {[%emt 0:01:03]} c5 {[%emt 0:00:10]} 8. dxc5 {[%emt 0:12:11]} Nc6 {[%emt 0:01:19]} 9. Nf3 {[%emt 0:06:54]} Qa5+ {[%emt 0:03:48]} 10. Bd2 {[%emt 0:01:52]} Qxc5 {[%emt 0:09:49]} 11. e3 {[%emt 0:00:51]} Nxd2 {[%emt 0:02:19]} 12. Nxd2 {[%emt 0:02:06]} d4 {[%emt 0:05:42]} 13. b4 {[%emt 0:08:13]} Qh5 {[%emt 0:05:37]} 14. Be2 {[%emt 0:10:13]} Qg6 {[%emt 0:03:24]} 15. Qxg6 {[%emt 0:02:32]} hxg6 {[%emt 0:00:04]} 16. O-O {[%emt 0:07:25]} dxe3 {[%emt 0:03:22]} 17. fxe3 {[%emt 0:01:16]} Ne5 {[%emt 0:01:16]} 18. c5 {[%emt 0:06:18]} Bd7 {[%emt 0:03:48]} 19. Rf4 {[%emt 0:08:45]} Ke7 {[%emt 0:04:37]} 20. Nf3 {[%emt 0:04:28]} Nxf3+ {[%emt 0:13:18]} 21. Bxf3 {[%emt 0:00:05]} Rab8 {[%emt 0:07:27]} 22. Rd4 {[%emt 0:01:22]} Rhc8 {[%emt 0:01:01]} 23. Rc1 {[%emt 0:02:26]} Rc7 {[%emt 0:02:24]} 24. Kf2 {[%emt 0:01:48]} Rbc8 {[%emt 0:00:49]} 25. Rcd1 {[%emt 0:00:59]} Ba4 {[%emt 0:02:16]} 26. R1d2 {[%emt 0:01:28]} b6 {[%emt 0:02:53]} 27. c6 {[%emt 0:02:19]} Ke8 {[%emt 0:12:59]} 28. Rd7 {[%emt 0:01:57]} a5 {[%emt 0:01:46]} 29. R2d6 {[%emt 0:01:06]} Bb5 {[%emt 0:02:32]} 30. Kg3 {[%emt 0:01:05]} axb4 {[%emt 0:01:57]} 1/2-1/2

[Event "EYCC Open-U14 2019"]
[Site "Bratislava"]
[Date "2019.08.08"]
[Round "7.10"]
[White "Revaliente Montoya, Ciro"]
[Black "Kirillov, Dmitry"]
[Result "0-1"]
[ECO "B40"]
[WhiteElo "1917"]
[BlackElo "2244"]
[Annotator "NA"]
[PlyCount "92"]
[EventDate "2019.08.02"]
[EventType "swiss"]
[EventCountry "SVK"]
[SourceTitle "playchess.com"]
[Source "ChessBase"]
[SourceQuality "1"]
[TimeControl "40/5400+30:1800+30"]

1. e4 {[%emt 0:00:00]} c5 {[%emt 0:00:00]} 2. Nf3 {[%emt 0:00:00]} e6 {[%emt 0:00:00]} 3. d4 {[%emt 0:00:00]} cxd4 {[%emt 0:00:00]} 4. Nxd4 {[%emt 0:00:00]} Nf6 {[%emt 0:00:00]} 5. Nc3 {[%emt 0:00:04]} Nc6 {[%emt 0:00:00]} 6. Ndb5 {[%emt 0:00:25]} Bb4 {[%emt 0:00:00]} 7. e5 {[%emt 0:01:28]} Nxe5 {[%emt 0:15:05]} 8. Bf4 {[%emt 0:02:40]} d6 {[%emt 0:01:32]} 9. a3 {[%emt 0:00:37]} Bxc3+ {[%emt 0:01:30]} 10. Nxc3 {[%emt 0:00:28]} O-O {[%emt 0:12:47]} 11. Qd4 {[%emt 0:01:36]} Nc6 {[%emt 0:16:08]} 12. Qxd6 {[%emt 0:01:42]} e5 {[%emt 0:03:00]} 13. Qxd8 {[%emt 0:02:29]} Rxd8 {[%emt 0:00:03]} 14. Be3 {[%emt 0:03:41]} Bf5 {[%emt 0:02:06]} 15. Rc1 {[%emt 0:05:45]} Rac8 {[%emt 0:03:33]} 16. Bb5 {[%emt 0:08:21]} Nd4 {[%emt 0:03:10]} 17. Ba4 {[%emt 0:02:52]} Ne4 {[%emt 0:03:05]} 18. Nxe4 {[%emt 0:05:08]} Bxe4 {[%emt 0:00:23]} 19. f3 {[%emt 0:00:15]} Bxc2 {[%emt 0:05:57]} 20. Bxd4 {[%emt 0:03:00]} Bxa4 {[%emt 0:00:07]} 21. Rxc8 {[%emt 0:00:08]} Rxc8 {[%emt 0:00:04]} 22. Bc3 {[%emt 0:00:09]} f6 {[%emt 0:00:25]} 23. Kf2 {[%emt 0:02:00]} Kf7 {[%emt 0:00:13]} 24. Re1 {[%emt 0:01:00]} b6 25. Re4 {[%emt 0:04:31]} Bb3 {[%emt 0:02:22]} 26. Rb4 {[%emt 0:04:17]} Bc4 {[%emt 0:02:16]} 27. a4 {[%emt 0:01:00]} Rc6 {[%emt 0:01:41]} 28. a5 {[%emt 0:05:56]} b5 {[%emt 0:00:51]} 29. Ke3 {[%emt 0:03:24]} a6 {[%emt 0:12:23]} 30. Kd2 {[%emt 0:02:20]} g5 {[%emt 0:01:13]} 31. b3 {[%emt 0:02:34]} Bd5 {[%emt 0:01:43]} 32. h4 {[%emt 0:05:00]} h6 {[%emt 0:01:32]} 33. hxg5 {[%emt 0:04:35]} hxg5 {[%emt 0:00:14]} 34. Kd3 {[%emt 0:00:45]} Kg6 {[%emt 0:07:56]} 35. Kd2 {[%emt 0:09:06]} Rc8 {[%emt 0:01:29]} 36. Kd3 {[%emt 0:01:13]} Re8 {[%emt 0:01:26]} 37. Ke3 {[%emt 0:01:42]} f5 {[%emt 0:01:43]} 38. Bb2 {[%emt 0:02:41]} f4+ {[%emt 0:00:22]} 39. Kd3 {[%emt 0:01:20]} Kf5 {[%emt 0:00:25]} 40. Ke2 {[%emt 0:00:00]} Rc8 {[%emt 0:00:00]} 41. Kd3 {[%emt 0:03:17]} Rg8 {[%emt 0:02:42]} 42. Ke2 {[%emt 0:03:41]} g4 {[%emt 0:00:16]} 43. Bc3 {[%emt 0:01:59]} gxf3+ {[%emt 0:00:30]} 44. gxf3 {[%emt 0:00:06]} Rg2+ {[%emt 0:00:08]} 45. Kf1 {[%emt 0:00:04]} Rc2 {[%emt 0:00:21]} 46. Be1 {[%emt 0:00:19]} Bxf3 {[%emt 0:00:24]} 0-1

[Event "EYCC Open-U14 2019"]
[Site "Bratislava"]
[Date "2019.08.08"]
[Round "7.11"]
[White "Morgunov, Marc"]
[Black "Liu, Casper"]
[Result "1-0"]
[ECO "B52"]
[WhiteElo "2314"]
[BlackElo "2194"]
[Annotator "NA"]
[PlyCount "129"]
[EventDate "2019.08.02"]
[EventType "swiss"]
[EventCountry "SVK"]
[SourceTitle "playchess.com"]
[Source "ChessBase"]
[SourceQuality "1"]
[TimeControl "40/5400+30:1800+30"]

1. e4 {[%emt 0:00:00]} c5 {[%emt 0:00:00]} 2. Nf3 {[%emt 0:00:00]} d6 {[%emt 0:00:00]} 3. Bb5+ {[%emt 0:00:00]} Bd7 {[%emt 0:00:00]} 4. Bxd7+ {[%emt 0:00:00]} Nxd7 {[%emt 0:00:00]} 5. c4 {[%emt 0:00:19]} Ne5 {[%emt 0:00:05]} 6. O-O {[%emt 0:04:54]} e6 {[%emt 0:04:54]} 7. Nc3 {[%emt 0:02:34]} Nf6 {[%emt 0:01:07]} 8. d3 {[%emt 0:02:52]} Be7 {[%emt 0:00:40]} 9. h3 {[%emt 0:03:20]} O-O {[%emt 0:00:52]} 10. Be3 {[%emt 0:01:10]} Rc8 {[%emt 0:00:52]} 11. b3 {[%emt 0:03:31]} Qa5 {[%emt 0:03:26]} 12. Rc1 {[%emt 0:02:25]} a6 {[%emt 0:02:22]} 13. a4 {[%emt 0:10:09]} Qb4 {[%emt 0:10:00]} 14. Nxe5 {[%emt 0:04:18]} dxe5 {[%emt 0:00:49]} 15. Qc2 {[%emt 0:00:41]} Nd7 16. Ra1 {[%emt 0:11:58]} Qb6 {[%emt 0:08:20]} 17. b4 {[%emt 0:01:33]} Qc7 {[%emt 0:04:56]} 18. b5 {[%emt 0:00:18]} a5 {[%emt 0:00:45]} 19. g3 {[%emt 0:02:12]} Bf6 {[%emt 0:02:24]} 20. h4 {[%emt 0:03:18]} Rfd8 {[%emt 0:04:18]} 21. Kg2 {[%emt 0:06:45]} b6 {[%emt 0:00:47]} 22. f3 {[%emt 0:00:32]} Nf8 {[%emt 0:02:05]} 23. Rad1 {[%emt 0:06:10]} h6 {[%emt 0:05:23]} 24. Rh1 {[%emt 0:05:29]} Qe7 {[%emt 0:05:21]} 25. Kf2 {[%emt 0:02:59]} Rd6 {[%emt 0:05:05]} 26. Ne2 {[%emt 0:04:50]} Qd8 {[%emt 0:05:02]} 27. Qd2 {[%emt 0:02:53]} h5 {[%emt 0:06:31]} 28. Nc1 {[%emt 0:01:43]} Rc7 {[%emt 0:04:45]} 29. Ke2 {[%emt 0:01:10]} Ng6 {[%emt 0:01:07]} 30. Rdg1 {[%emt 0:00:44]} Kf8 {[%emt 0:01:35]} 31. g4 {[%emt 0:05:15]} hxg4 {[%emt 0:04:48]} 32. Rxg4 {[%emt 0:00:10]} Bxh4 {[%emt 0:01:01]} 33. Rhxh4 {[%emt 0:01:23]} Nxh4 {[%emt 0:00:07]} 34. Bg5 {[%emt 0:00:04]} f6 {[%emt 0:02:30]} 35. Rxh4 {[%emt 0:01:23]} Ke7 {[%emt 0:00:55]} 36. Be3 {[%emt 0:00:47]} Qe8 {[%emt 0:03:36]} 37. Qe1 {[%emt 0:01:35]} Rd8 {[%emt 0:02:18]} 38. Qg3 {[%emt 0:02:36]} g5 {[%emt 0:02:08]} 39. Rh6 {[%emt 0:00:35]} Qf8 {[%emt 0:02:58]} 40. Qh3 {[%emt 0:00:00]} Qg8 {[%emt 0:00:00]} 41. Nb3 {[%emt 0:12:57]} Rf8 {[%emt 0:05:56]} 42. Nd2 {[%emt 0:00:19]} Kd6 {[%emt 0:02:05]} 43. Nf1 {[%emt 0:00:47]} Rd7 {[%emt 0:15:11]} 44. Nh2 {[%emt 0:01:49]} Kc7 {[%emt 0:04:32]} 45. Ng4 {[%emt 0:00:47]} Qg7 {[%emt 0:00:13]} 46. Qh5 {[%emt 0:02:37]} Qe7 {[%emt 0:03:29]} 47. Rh8 {[%emt 0:08:59]} Qg7 {[%emt 0:01:31]} 48. Rh6 {[%emt 0:01:21]} Qe7 {[%emt 0:00:05]} 49. Kf2 {[%emt 0:01:14]} Qf7 {[%emt 0:03:12]} 50. Qh2 {[%emt 0:01:11]} Qg7 {[%emt 0:00:10]} 51. Nxf6 {[%emt 0:00:42]} Rdf7 {[%emt 0:01:08]} 52. Qxe5+ {[%emt 0:00:18]} Kb7 {[%emt 0:00:15]} 53. Bxg5 {[%emt 0:00:26]} Rh8 {[%emt 0:00:41]} 54. Ng4 {[%emt 0:01:24]} Qxe5 {[%emt 0:02:32]} 55. Nxe5 Rxh6 {[%emt 0:00:07]} 56. Bxh6 {[%emt 0:00:09]} Rh7 {[%emt 0:00:05]} 57. Ng4 {[%emt 0:00:07]} Kc7 {[%emt 0:00:16]} 58. f4 {[%emt 0:00:29]} Kd6 {[%emt 0:00:13]} 59. e5+ {[%emt 0:00:59]} Kc7 {[%emt 0:01:01]} 60. Ke3 {[%emt 0:00:26]} Rd7 {[%emt 0:00:35]} 61. Nf6 {[%emt 0:00:22]} Rd8 {[%emt 0:00:41]} 62. Bg7 {[%emt 0:00:21]} Kc8 {[%emt 0:00:28]} 63. f5 {[%emt 0:00:50]} exf5 {[%emt 0:00:07]} 64. Nd5 {[%emt 0:00:07]} Rg8 {[%emt 0:00:23]} 65. Ne7+ {[%emt 0:00:05]} 1-0

[Event "EYCC Open-U14 2019"]
[Site "Bratislava"]
[Date "2019.08.08"]
[Round "7.12"]
[White "Vojta, Jakub"]
[Black "Kristoferitsch, Daniel"]
[Result "0-1"]
[ECO "C44"]
[WhiteElo "2238"]
[BlackElo "2108"]
[Annotator "NA"]
[PlyCount "118"]
[EventDate "2019.08.02"]
[EventType "swiss"]
[EventCountry "SVK"]
[SourceTitle "playchess.com"]
[Source "ChessBase"]
[SourceQuality "1"]
[TimeControl "40/5400+30:1800+30"]

1. e4 {[%emt 0:00:00]} e5 {[%emt 0:00:00]} 2. Nf3 {[%emt 0:00:38]} Nc6 {[%emt 0:00:00]} 3. d4 {[%emt 0:02:19]} exd4 {[%emt 0:00:00]} 4. Bc4 {[%emt 0:00:06]} Bc5 {[%emt 0:00:00]} 5. O-O {[%emt 0:05:09]} d6 {[%emt 0:00:11]} 6. Bf4 {[%emt 0:07:55]} Nf6 {[%emt 0:13:14]} 7. h3 {[%emt 0:16:35]} Nxe4 {[%emt 0:16:56]} 8. Re1 {[%emt 0:00:40]} d5 {[%emt 0:00:08]} 9. Bxd5 {[%emt 0:00:34]} Qxd5 {[%emt 0:00:12]} 10. Nc3 {[%emt 0:00:06]} Qd8 {[%emt 0:09:33]} 11. Nxe4 {[%emt 0:00:18]} Be7 {[%emt 0:00:45]} 12. c3 {[%emt 0:08:07]} O-O {[%emt 0:13:12]} 13. cxd4 {[%emt 0:01:08]} Nb4 {[%emt 0:00:06]} 14. a3 {[%emt 0:05:30]} Nd5 {[%emt 0:00:10]} 15. Bh2 {[%emt 0:00:09]} c6 {[%emt 0:04:39]} 16. Rc1 {[%emt 0:01:42]} Bf5 {[%emt 0:05:58]} 17. Nc5 {[%emt 0:03:46]} b6 {[%emt 0:00:56]} 18. Nd3 {[%emt 0:00:46]} Rc8 {[%emt 0:01:07]} 19. b4 {[%emt 0:05:00]} Qd7 {[%emt 0:01:44]} 20. Nde5 {[%emt 0:03:39]} Qb7 {[%emt 0:00:29]} 21. Qa4 {[%emt 0:01:42]} b5 {[%emt 0:06:43]} 22. Qb3 {[%emt 0:00:34]} Rfd8 {[%emt 0:02:59]} 23. Nd3 {[%emt 0:04:05]} Bxd3 {[%emt 0:01:12]} 24. Qxd3 {[%emt 0:00:07]} a5 {[%emt 0:00:09]} 25. bxa5 {[%emt 0:02:09]} Qa6 {[%emt 0:05:54]} 26. Ne5 {[%emt 0:17:14]} Qxa5 {[%emt 0:01:18]} 27. Qf5 {[%emt 0:01:04]} Bf6 {[%emt 0:01:27]} 28. Qf3 {[%emt 0:05:08]} Qb6 {[%emt 0:04:32]} 29. Rc5 {[%emt 0:00:47]} Ne7 {[%emt 0:01:44]} 30. Qe4 {[%emt 0:00:57]} Rd5 {[%emt 0:01:44]} 31. Nxc6 {[%emt 0:03:15]} Rxc5 {[%emt 0:00:06]} 32. Nxe7+ {[%emt 0:00:51]} Bxe7 {[%emt 0:00:08]} 33. dxc5 {[%emt 0:00:41]} Bxc5 {[%emt 0:00:11]} 34. Qf3 {[%emt 0:00:30]} Qa5 {[%emt 0:02:41]} 35. Rd1 {[%emt 0:02:37]} Bxa3 {[%emt 0:03:19]} 36. Be5 {[%emt 0:01:13]} Bf8 {[%emt 0:01:19]} 37. Qf5 {[%emt 0:00:54]} Rd8 {[%emt 0:00:56]} 38. Rc1 {[%emt 0:00:13]} b4 {[%emt 0:01:18]} 39. f4 {[%emt 0:00:50]} Qd5 {[%emt 0:00:52]} 40. Qc2 {[%emt 0:00:00]} b3 {[%emt 0:00:00]} 41. Qc4 {[%emt 0:02:53]} Qxc4 {[%emt 0:10:58]} 42. Rxc4 {[%emt 0:00:03]} Ba3 {[%emt 0:00:27]} 43. Re4 {[%emt 0:01:04]} b2 {[%emt 0:00:48]} 44. Re1 {[%emt 0:00:05]} Rc8 {[%emt 0:00:12]} 45. Kf2 {[%emt 0:00:13]} Rc1 {[%emt 0:04:02]} 46. Bxb2 {[%emt 0:00:04]} Rxe1 {[%emt 0:00:06]} 47. Bxa3 {[%emt 0:00:03]} Rb1 {[%emt 0:00:25]} 48. Bc5 {[%emt 0:00:12]} Rb3 {[%emt 0:01:06]} 49. Bd4 {[%emt 0:00:23]} f5 {[%emt 0:01:53]} 50. Be5 {[%emt 0:00:12]} g6 {[%emt 0:00:06]} 51. Kg1 {[%emt 0:00:24]} Kf7 {[%emt 0:00:34]} 52. Kh2 {[%emt 0:00:05]} Ke6 {[%emt 0:00:10]} 53. g4 {[%emt 0:00:14]} Kd5 {[%emt 0:00:11]} 54. Kg2 {[%emt 0:00:15]} Ke4 {[%emt 0:00:07]} 55. Bd6 {[%emt 0:00:19]} Rf3 {[%emt 0:00:33]} 56. gxf5 {[%emt 0:00:04]} gxf5 {[%emt 0:00:05]} 57. Be5 {[%emt 0:00:05]} Rxf4 {[%emt 0:02:18]} 58. Bxf4 {[%emt 0:00:08]} Kxf4 {[%emt 0:00:01]} 59. Kf2 {[%emt 0:00:01]} h6 {[%emt 0:00:10]} 0-1